bitfinex-derivatives/quotes_BTCF0:USTF0_20250313
["timestamp","ask_amount","ask_price","bid_price","bid_amount"]
[1741837615872,0.081,83645.0,83644.0,0.1621758]
[1741837616059,0.081,83645.0,83644.0,0.1821758]
[1741837616254,0.081,83645.0,83644.0,0.1621758]
[1741837616461,0.081,83645.0,83644.0,0.17553452]
[1741837616655,0.2005743,83645.0,83644.0,0.17553452]
[1741837617282,0.2005743,83645.0,83644.0,0.18653452]
[1741837617962,0.081,83645.0,83644.0,0.18653452]
[1741837620270,0.00017936,83651.0,83644.0,0.18653452]
[1741837620271,0.00017936,83651.0,83650.0,0.1195672]
[1741837620461,0.00017936,83651.0,83650.0,0.2434872]
[1741837620767,0.00017936,83651.0,83650.0,0.25684592]
[1741837620974,0.00017936,83651.0,83650.0,0.27684592]
[1741837621763,0.00017936,83651.0,83650.0,0.32684592]
[1741837621960,0.00017936,83651.0,83650.0,0.27684592]
[1741837622159,0.11974516,83651.0,83650.0,0.14292592]
[1741837622368,0.11974516,83651.0,83650.0,0.01335872]
[1741837623175,0.08317936,83651.0,83645.0,0.4789142]
[1741837623369,0.08317936,83651.0,83645.0,0.4782742]
[1741837623370,0.1195729,83646.0,83645.0,0.4782742]
[1741837623769,0.1195729,83646.0,83645.0,0.3587]
[1741837624167,0.2014729,83646.0,83645.0,0.3587]
[1741837624366,0.2014729,83646.0,83645.0,0.4782743]
[1741837625274,0.2014729,83646.0,83645.0,0.1195743]
[1741837625972,0.0819,83646.0,83645.0,0.1195743]
[1741837626180,0.0819,83646.0,83645.0,0.1607743]
[1741837626578,0.0819,83646.0,83645.0,0.3807743]
[1741837626886,0.0819,83646.0,83645.0,0.2507743]
[1741837627800,0.0819,83646.0,83645.0,0.26415854]
[1741837628100,0.0819,83646.0,83645.0,0.26515854]
[1741837628395,0.0819,83646.0,83645.0,0.3117743]
[1741837628681,0.0819,83646.0,83645.0,0.2417743]
[1741837629585,0.0819,83646.0,83645.0,0.25509216]
[1741837631179,0.0819,83646.0,83645.0,0.23509216]
[1741837631378,0.2014729,83646.0,83645.0,0.19389216]
[1741837631579,0.2014729,83646.0,83645.0,0.13819786]
[1741837631782,0.2014729,83646.0,83645.0,0.25677216]
[1741837632090,0.2014729,83646.0,83645.0,0.01331786]
[1741837632279,0.1195772,83643.0,83642.0,0.00017936]
[1741837633176,0.1195772,83643.0,83642.0,0.01247929]
[1741837633687,0.1195786,83642.0,83641.0,0.21427312]
[1741837633877,0.1195786,83642.0,83641.0,0.22657119]
[1741837634481,0.1619786,83642.0,83641.0,0.22657119]
[1741837634983,0.1619786,83642.0,83641.0,0.01229807]
[1741837635485,0.1619786,83642.0,83641.0,0.001]
[1741837635881,0.1619786,83642.0,83641.0,0.01326395]
[1741837636082,0.1619786,83642.0,83641.0,0.001]
[1741837636877,0.2047786,83642.0,83641.0,0.001]
[1741837638889,0.35912,83642.0,83618.0,0.21427312]
[1741837639088,0.1196115,83619.0,83618.0,0.21427312]
[1741837639976,0.1196115,83619.0,83618.0,0.33388612]
[1741837640173,0.2015115,83619.0,83618.0,0.21427312]
[1741837640377,0.0819,83619.0,83618.0,0.33388612]
[1741837640576,0.2015115,83619.0,83618.0,0.41758612]
[1741837640774,0.0819,83619.0,83618.0,0.41758612]
[1741837640983,0.2015115,83619.0,83618.0,0.41758612]
[1741837641181,0.1196022,83626.0,83625.0,0.1196029]
[1741837641480,0.0415,83626.0,83625.0,0.1196029]
[1741837641685,0.1611015,83626.0,83625.0,0.1196029]
[1741837642286,0.0598035,83623.0,83601.0,0.43711924]
[1741837642498,0.1196101,83620.0,83619.0,0.0424]
[1741837642678,0.1196101,83620.0,83619.0,0.1620115]
[1741837643282,0.1196101,83620.0,83619.0,0.2038115]
[1741837644091,0.1421037,83622.0,83621.0,0.1196087]
[1741837644290,0.0823,83622.0,83621.0,0.1196087]
[1741837644593,0.2019072,83622.0,83621.0,0.2435287]
[1741837644794,0.2019072,83622.0,83621.0,0.25682603]
[1741837645295,0.2019072,83622.0,83621.0,0.26892924]
[1741837646194,0.2019072,83622.0,83621.0,0.13721733]
[1741837646390,0.2019072,83622.0,83621.0,0.01329733]
[1741837646698,0.059801,83626.0,83621.0,0.01329733]
[1741837646891,0.11977946,83627.0,83626.0,0.1196015]
[1741837647085,0.11977946,83627.0,83626.0,0.2023015]
[1741837647698,0.11977946,83627.0,83626.0,0.21457308]
[1741837648195,0.00017936,83627.0,83626.0,0.22787041]
[1741837648391,0.00017936,83627.0,83626.0,0.49179041]
[1741837648585,0.00017936,83627.0,83626.0,0.42179041]
[1741837648791,0.1421459,83638.0,83637.0,0.1195858]
[1741837649183,0.2617302,83638.0,83637.0,0.13179259]
[1741837649386,0.1195843,83638.0,83637.0,0.13179259]
[1741837649598,0.1195843,83638.0,83637.0,0.22848992]
[1741837649996,0.1195818,83640.0,83639.0,0.1195815]
[1741837650195,0.1195818,83640.0,83639.0,0.13178829]
[1741837650390,0.00017936,83646.0,83639.0,0.13178829]
[1741837650391,0.00017936,83646.0,83641.0,0.1195786]
[1741837650698,0.2617231,83643.0,83642.0,0.21468539]
[1741837651199,0.2617231,83643.0,83642.0,0.22798272]
[1741837652792,0.1195772,83643.0,83642.0,0.22797502]
[1741837652995,0.00017936,83646.0,83645.0,0.1195743]
[1741837653302,0.0597796,83656.0,83645.0,0.38607909]
[1741837653492,0.1793414,83655.0,83654.0,0.11956]
[1741837653700,0.11482847,83665.0,83657.0,0.1195572]
[1741837653701,0.0431,83665.0,83657.0,0.1195572]
[1741837653895,0.22605315,83658.0,83657.0,0.13181816]
[1741837654087,0.22605315,83658.0,83657.0,0.13181826]
[1741837654293,0.22605315,83658.0,83657.0,0.14511559]
[1741837654597,0.22605315,83658.0,83657.0,0.02555839]
[1741837654897,0.22605315,83658.0,83657.0,0.01429733]
[1741837655696,0.22605315,83658.0,83657.0,3e-08]
[1741837656102,0.37605315,83658.0,83657.0,3e-08]
[1741837656401,0.2695558,83658.0,83657.0,3e-08]
[1741837656602,0.1195672,83650.0,83649.0,9e-08]
[1741837657102,0.2695672,83650.0,83649.0,9e-08]
[1741837657399,0.28203644,83650.0,83649.0,9e-08]
[1741837658002,0.2695672,83650.0,83649.0,0.00100009]
[1741837658992,0.1195672,83650.0,83649.0,0.00100009]
[1741837660604,0.17771002,83650.0,83649.0,9e-08]
[1741837660805,0.17771002,83650.0,83649.0,0.00100009]
[1741837662192,0.30159002,83650.0,83649.0,0.00100009]
[1741837662502,0.17771002,83650.0,83649.0,0.00100009]
[1741837664211,0.1195672,83650.0,83649.0,0.00100009]
[1741837664499,0.1195672,83650.0,83649.0,9e-08]
[1741837667603,0.29721802,83650.0,83649.0,9e-08]
[1741837668805,0.33661802,83650.0,83649.0,9e-08]
[1741837670105,0.37651802,83650.0,83649.0,9e-08]
[1741837671104,0.43465711,83650.0,83649.0,9e-08]
[1741837674116,0.25700629,83650.0,83649.0,9e-08]
[1741837674910,0.25700629,83650.0,83649.0,0.01379986]
[1741837676507,0.25700629,83650.0,83649.0,0.02652463]
[1741837676702,0.25700629,83650.0,83649.0,0.01379986]
[1741837676905,0.1195772,83643.0,83642.0,0.041]
[1741837677108,0.1195772,83643.0,83642.0,0.05372469]
[1741837677307,0.1195772,83643.0,83642.0,0.041]
[1741837677510,0.1195772,83643.0,83642.0,0.05367321]
[1741837677712,0.1993772,83643.0,83642.0,0.09407321]
[1741837678210,0.1993772,83643.0,83642.0,0.05367321]
[1741837678513,0.1195915,83633.0,83632.0,0.0406]
[1741837679098,0.0817,83634.0,83621.0,0.042]
[1741837679299,0.1196058,83623.0,83622.0,0.0406]
[1741837679502,0.1196058,83623.0,83622.0,0.06078831]
[1741837679805,0.13183392,83623.0,83622.0,0.06078832]
[1741837680005,0.13183392,83623.0,83622.0,0.0406]
[1741837680214,0.17363392,83623.0,83622.0,0.0406]
[1741837680713,0.17263392,83623.0,83622.0,0.0406]
[1741837680911,0.21353392,83623.0,83622.0,0.0406]
[1741837682008,0.21353392,83623.0,83622.0,0.0812]
[1741837682808,0.13083392,83623.0,83622.0,0.0812]
[1741837683004,0.1186058,83623.0,83622.0,0.0812]
[1741837683211,0.1186058,83623.0,83622.0,0.2008072]
[1741837683511,0.1186058,83623.0,83622.0,0.10355022]
[1741837684419,0.2004058,83623.0,83622.0,0.12423303]
[1741837684912,0.2004058,83623.0,83622.0,0.12419512]
[1741837686707,0.1186058,83623.0,83622.0,0.12419512]
[1741837687015,0.1186058,83623.0,83622.0,0.12414045]
[1741837687218,0.1186058,83623.0,83622.0,0.24374765]
[1741837687417,0.28609326,83625.0,83624.0,0.1196044]
[1741837687616,0.28609326,83625.0,83624.0,0.14019463]
[1741837688315,0.22629026,83625.0,83624.0,0.16254485]
[1741837689107,0.22629026,83625.0,83624.0,0.17641518]
[1741837690210,0.22629026,83625.0,83624.0,0.15406496]
[1741837690520,0.22629026,83625.0,83624.0,0.16679169]
[1741837690719,0.1196029,83625.0,83624.0,0.16679169]
[1741837692822,0.1196029,83625.0,83624.0,0.18904526]
[1741837694817,0.059799,83629.0,83628.0,0.1793925]
[1741837695022,0.059799,83629.0,83628.0,0.21270946]
[1741837695637,0.10668736,83632.0,83628.0,0.10531371]
[1741837695820,0.119595,83631.0,83630.0,0.1195944]
[1741837696116,0.119595,83631.0,83630.0,0.15291136]
[1741837696713,0.10668736,83632.0,83630.0,0.15291136]
[1741837696920,0.10668736,83632.0,83631.0,0.15291136]
[1741837697114,0.10668736,83632.0,83631.0,0.29675136]
[1741837697425,0.1195929,83632.0,83631.0,0.27675136]
[1741837698321,0.1195929,83632.0,83631.0,0.25616113]
[1741837698515,0.10668736,83634.0,83633.0,0.1195915]
[1741837698823,0.22627746,83634.0,83633.0,0.1195915]
[1741837699025,0.22627746,83634.0,83633.0,0.15281881]
[1741837699222,0.22627746,83634.0,83633.0,0.1582915]
[1741837700027,0.10668736,83634.0,83633.0,0.1582915]
[1741837700323,0.22627746,83634.0,83633.0,0.19174138]
[1741837700523,0.1195901,83634.0,83633.0,0.19174138]
[1741837700919,0.00017936,83636.0,83635.0,0.1195886]
[1741837701121,0.00017936,83636.0,83635.0,0.29303848]
[1741837701928,0.00017936,83636.0,83635.0,0.32916238]
[1741837702230,0.00017936,83636.0,83635.0,0.31998523]
[1741837702522,0.10668736,83641.0,83640.0,0.1195815]
[1741837702716,0.10668736,83641.0,83640.0,0.45765423]
[1741837702924,0.10668736,83641.0,83640.0,0.47418826]
[1741837703424,0.10668736,83641.0,83640.0,0.33385423]
[1741837703625,0.10668736,83641.0,83640.0,0.49377813]
[1741837704028,0.10668736,83641.0,83640.0,0.49358165]
[1741837704525,0.2195596,83648.0,83647.0,0.1195715]
[1741837704728,0.2195596,83648.0,83647.0,0.15364775]
[1741837705526,0.2195596,83648.0,83647.0,0.07020015]
[1741837706029,0.2195596,83648.0,83647.0,0.04923007]
[1741837706732,0.2195596,83648.0,83647.0,0.05023007]
[1741837708732,0.2195596,83648.0,83647.0,0.0279765]
[1741837710029,0.2195596,83648.0,83647.0,0.01487033]
[1741837713119,0.2195596,83648.0,83647.0,0.02759068]
[1741837713518,0.2195596,83648.0,83647.0,0.02766783]
[1741837713738,0.2195596,83648.0,83647.0,0.04992605]
[1741837717439,0.2195596,83648.0,83647.0,0.04996197]
[1741837720444,0.2195596,83648.0,83647.0,0.07058102]
[1741837721332,0.2614596,83648.0,83647.0,0.07058102]
[1741837721937,0.2614596,83648.0,83647.0,0.04996197]
[1741837722332,0.2614596,83648.0,83647.0,0.07039821]
[1741837723136,0.2614596,83648.0,83647.0,0.03712855]
[1741837723339,0.2614596,83648.0,83647.0,0.07036421]
[1741837732947,0.2614596,83648.0,83647.0,0.07083417]
[1741837733650,0.2614596,83648.0,83647.0,0.19040567]
[1741837733651,0.0999851,83648.0,83647.0,0.19040567]
[1741837733845,0.00017936,83649.0,83647.0,0.21040567]
[1741837734045,0.11974806,83649.0,83648.0,0.25887572]
[1741837734446,0.11974806,83649.0,83648.0,0.29500427]
[1741837734647,0.29763443,83649.0,83648.0,0.29500427]
[1741837734845,0.29763443,83649.0,83648.0,0.29509903]
[1741837736047,0.29763443,83649.0,83648.0,0.29609903]
[1741837737656,0.11974806,83649.0,83648.0,0.29609903]
[1741837739154,0.00017936,83649.0,83648.0,0.37609903]
[1741837739353,0.14272709,83652.0,83651.0,0.1195658]
[1741837739549,0.26229139,83652.0,83651.0,0.19336618]
[1741837740048,0.26229139,83652.0,83651.0,0.22949473]
[1741837740247,0.23538615,83652.0,83651.0,0.22949473]
[1741837740456,0.11582185,83652.0,83651.0,0.26817687]
[1741837740672,0.11582185,83652.0,83651.0,0.26917687]
[1741837741161,0.1195606,83655.0,83654.0,0.11956]
[1741837741357,0.1195606,83655.0,83654.0,0.13204252]
[1741837741562,0.1195606,83655.0,83654.0,0.16817107]
[1741837741757,0.1195606,83655.0,83654.0,0.16814066]
[1741837742053,0.22655609,83656.0,83655.0,0.11956]
[1741837742259,0.22655609,83656.0,83655.0,0.13201211]
[1741837742556,0.22655609,83656.0,83655.0,0.16814066]
[1741837743982,0.22655609,83656.0,83655.0,0.16914066]
[1741837744146,0.22655609,83656.0,83655.0,0.14688244]
[1741837744346,0.22655609,83656.0,83655.0,0.02732244]
[1741837744952,0.22655609,83656.0,83655.0,0.14688244]
[1741837745157,0.22655609,83656.0,83655.0,0.02732244]
[1741837745366,0.22655609,83656.0,83655.0,4e-08]
[1741837745668,0.1195586,83656.0,83655.0,0.001]
[1741837746256,0.0377,83658.0,83649.0,0.21474024]
[1741837746454,0.1195672,83650.0,83649.0,0.21474024]
[1741837747362,0.1887672,83650.0,83649.0,0.21474024]
[1741837748562,0.1887672,83650.0,83641.0,0.47675189]
[1741837748863,0.1195786,83642.0,83641.0,0.1195795]
[1741837749165,0.1195829,83640.0,83639.0,0.1195825]
[1741837749365,0.1195843,83638.0,83637.0,0.121379]
[1741837749952,0.1956843,83638.0,83637.0,0.121379]
[1741837750755,0.1956843,83638.0,83637.0,0.0017933]
[1741837751664,0.20789165,83638.0,83637.0,0.0017933]
[1741837751854,0.20989165,83638.0,83637.0,0.0017933]
[1741837752463,0.1986843,83638.0,83637.0,0.1213791]
[1741837752965,0.1956843,83638.0,83637.0,0.1213791]
[1741837753263,0.1986843,83638.0,83637.0,0.1213791]
[1741837755059,0.003,83638.0,83637.0,0.1813791]
[1741837755367,0.003,83638.0,83637.0,0.2013791]
[1741837755863,0.22650368,83644.0,83643.0,0.1195772]
[1741837756073,0.22650368,83644.0,83643.0,0.2432972]
[1741837756275,0.1195776,83644.0,83643.0,0.2432972]
[1741837756756,0.1539776,83644.0,83643.0,0.2432972]
[1741837757765,0.1539776,83644.0,83643.0,0.2632972]
[1741837758351,0.1539776,83644.0,83643.0,0.25671892]
[1741837758960,0.1539776,83644.0,83643.0,0.28889043]
[1741837759161,0.1539776,83644.0,83643.0,0.26889043]
[1741837759362,0.1539776,83644.0,83643.0,0.13714172]
[1741837759758,0.1539776,83644.0,83643.0,0.01342172]
[1741837762663,0.1539776,83644.0,83643.0,2e-08]
[1741837762871,0.0941885,83644.0,83632.0,0.00017936]
[1741837763070,0.1195929,83632.0,83631.0,0.29985175]
[1741837763269,0.1195929,83632.0,83606.0,0.0598148]
[1741837763270,0.1196001,83627.0,83626.0,0.36283939]
[1741837763568,0.1196001,83627.0,83626.0,0.36223939]
[1741837764456,0.13138211,83627.0,83626.0,0.36223939]
[1741837766170,0.13238211,83627.0,83626.0,0.36223939]
[1741837766361,0.13238211,83627.0,83618.0,0.00017936]
[1741837766362,0.1196115,83619.0,83618.0,0.00017936]
[1741837767168,0.1925115,83619.0,83618.0,0.00017936]
[1741837768071,0.1925115,83619.0,83618.0,0.00117936]
[1741837768373,0.1925115,83619.0,83618.0,6e-08]
[1741837768671,0.3425115,83619.0,83618.0,6e-08]
[1741837769056,0.35151788,83619.0,83618.0,6e-08]
[1741837769264,0.1196373,83601.0,83600.0,0.1]
[1741837770362,0.20314712,83601.0,83600.0,0.1]
[1741837771673,0.20314712,83601.0,83600.0,0.1718]
[1741837772469,0.1196373,83601.0,83600.0,0.2914387]
[1741837773170,0.13483116,83620.0,83607.0,0.1196273]
[1741837773364,0.13196514,83609.0,83608.0,0.2281273]
[1741837773564,0.11980516,83609.0,83608.0,0.2281273]
[1741837774670,0.12080516,83609.0,83608.0,0.1085]
[1741837775177,0.11980516,83609.0,83608.0,0.1085]
[1741837775374,0.12280516,83609.0,83608.0,0.12196171]
[1741837775573,0.12280516,83609.0,83608.0,0.24158901]
[1741837776975,0.12280516,83609.0,83608.0,0.2281273]
[1741837777570,0.12080516,83609.0,83608.0,0.2281273]
[1741837778972,0.12280516,83609.0,83608.0,0.2281273]
[1741837779868,0.12280516,83609.0,83608.0,0.24144949]
[1741837780971,0.12280516,83609.0,83608.0,0.36516949]
[1741837781669,0.12280516,83609.0,83608.0,0.23222]
[1741837782277,0.12280516,83609.0,83608.0,0.1085]
[1741837782774,0.12280516,83609.0,83608.0,0.2281273]
[1741837783374,0.00317936,83609.0,83608.0,0.2281273]
[1741837783777,0.00317936,83609.0,83608.0,0.2881273]
[1741837783978,0.00117936,83609.0,83608.0,0.3081273]
[1741837784180,0.0598004,83627.0,83624.0,0.1196044]
[1741837784381,0.1196087,83621.0,83620.0,0.0598044]
[1741837785471,0.1196087,83621.0,83620.0,0.1343044]
[1741837786174,0.22589787,83623.0,83622.0,0.1196072]
[1741837788482,0.22889787,83623.0,83622.0,0.1196072]
[1741837789383,0.1226086,83623.0,83622.0,0.1196072]
[1741837790081,0.003,83623.0,83622.0,0.1796072]
[1741837790271,0.00017936,83629.0,83628.0,0.1195986]
[1741837790778,0.11977656,83629.0,83628.0,0.1195986]
[1741837791080,0.11977656,83629.0,83628.0,0.1930986]
[1741837791381,0.11977656,83629.0,83628.0,0.0735]
[1741837791583,0.11977656,83629.0,83628.0,0.1930986]
[1741837792179,0.12377656,83629.0,83628.0,0.1930986]
[1741837794580,0.12377656,83629.0,83628.0,0.20534922]
[1741837794779,0.00417936,83629.0,83628.0,0.20534922]
[1741837794982,0.12377656,83629.0,83628.0,0.1930986]
[1741837796395,0.00417936,83629.0,83628.0,0.2530986]
[1741837796575,0.00417936,83629.0,83628.0,0.2730986]
[1741837796989,0.10628927,83635.0,83634.0,0.1195901]
[1741837797287,0.10628927,83635.0,83634.0,0.4632701]
[1741837797876,0.00179435,83636.0,83634.0,0.4632701]
[1741837797877,0.17755756,83645.0,83644.0,0.1195758]
[1741837798079,0.17755756,83645.0,83644.0,0.3932158]
[1741837798385,0.17755756,83645.0,83644.0,0.2532158]
[1741837798783,0.17755756,83645.0,83644.0,0.2432158]
[1741837799086,0.17755756,83645.0,83644.0,0.29073376]
[1741837799486,0.29713186,83645.0,83644.0,0.29073376]
[1741837799886,0.29713186,83645.0,83644.0,0.29173376]
[1741837800083,0.17755756,83645.0,83644.0,0.29173376]
[1741837800280,0.17755756,83645.0,83644.0,0.46173376]
[1741837800486,0.17755756,83645.0,83644.0,0.47368833]
[1741837800703,0.00017936,83653.0,83644.0,0.47368833]
[1741837800704,0.1195645,83652.0,83651.0,0.1195658]
[1741837800887,0.00017936,83653.0,83652.0,0.0722]
[1741837801085,0.11974226,83653.0,83652.0,0.1917643]
[1741837801278,0.11974226,83653.0,83652.0,0.2267643]
[1741837801483,0.11974226,83653.0,83652.0,0.2867643]
[1741837801683,0.00017936,83653.0,83652.0,0.2867643]
[1741837801881,0.00017936,83653.0,83652.0,0.2267643]
[1741837802087,0.11974226,83653.0,83652.0,0.2267643]
[1741837803192,0.11974226,83653.0,83652.0,0.24003886]
[1741837803692,0.15704226,83653.0,83652.0,0.24003886]
[1741837803893,0.15704226,83653.0,83652.0,0.2267643]
[1741837804886,0.03747936,83653.0,83652.0,0.2267643]
[1741837805077,0.00017936,83653.0,83652.0,0.3767643]
[1741837805275,0.0373,83661.0,83660.0,0.1195529]
[1741837805494,0.1568515,83661.0,83660.0,0.1195529]
[1741837805877,0.0597735,83665.0,83664.0,0.1195458]
[1741837806078,0.2137193,83665.0,83664.0,0.1195458]
[1741837807088,0.0587769,83660.0,83656.0,0.00017936]
[1741837807293,0.1195558,83658.0,83656.0,0.00017936]
[1741837807494,0.1195558,83658.0,83657.0,0.2431572]
[1741837807718,0.1902558,83658.0,83657.0,0.1195572]
[1741837808886,0.1892558,83658.0,83657.0,0.1195572]
[1741837809285,0.0707,83658.0,83657.0,0.1195572]
[1741837809492,0.0344,83658.0,83657.0,0.1205572]
[1741837809689,0.1539558,83658.0,83657.0,0.1205572]
[1741837810099,0.12133784,83667.0,83666.0,0.1195443]
[1741837810496,0.15673784,83667.0,83666.0,0.1195443]
[1741837810998,0.15673784,83667.0,83666.0,0.13281599]
[1741837811500,0.19143784,83667.0,83666.0,0.13281599]
[1741837811796,0.07189354,83667.0,83666.0,0.13281599]
[1741837812008,0.17755756,83686.0,83672.0,0.1195358]
[1741837812189,0.0597649,83677.0,83672.0,0.1195358]
[1741837812501,0.11971366,83673.0,83672.0,0.1195358]
[1741837812685,0.11971366,83673.0,83672.0,0.14479891]
[1741837813299,0.00017936,83673.0,83672.0,0.22579891]
[1741837814798,0.11971366,83673.0,83672.0,0.20579891]
[1741837815192,0.11971366,83673.0,83672.0,0.13783169]
[1741837815598,0.19281366,83673.0,83672.0,0.13783169]
[1741837817502,0.19281366,83673.0,83672.0,0.25736749]
[1741837817700,0.07327936,83673.0,83672.0,0.37736749]
[1741837817891,0.07327936,83673.0,83672.0,0.25736749]
[1741837818092,0.19281366,83673.0,83672.0,0.25736749]
[1741837818293,0.07327936,83673.0,83672.0,0.25736749]
[1741837818497,0.19281366,83673.0,83672.0,0.2440958]
[1741837820292,0.19281366,83673.0,83672.0,0.2799958]
[1741837821106,0.19281366,83673.0,83672.0,0.3144958]
[1741837821407,0.00017936,83673.0,83672.0,0.3644958]
[1741837821608,0.00017936,83673.0,83672.0,0.4311958]
[1741837821804,0.0706,83681.0,83680.0,0.1195243]
[1741837822005,0.2146726,83689.0,83688.0,0.1195129]
[1741837822196,0.2146726,83689.0,83688.0,0.13277777]
[1741837822398,0.0951559,83689.0,83688.0,0.13277777]
[1741837823300,0.0354,83689.0,83688.0,0.14474174]
[1741837823606,0.0354,83689.0,83688.0,0.14574174]
[1741837823797,0.1549115,83689.0,83688.0,0.21964174]
[1741837823999,0.1549115,83689.0,83688.0,0.21864174]
[1741837824198,0.1549115,83689.0,83688.0,0.23185446]
[1741837824497,0.26168319,83695.0,83694.0,0.1195043]
[1741837824704,0.26168319,83695.0,83694.0,0.13171702]
[1741837824912,0.26168319,83695.0,83694.0,0.14498189]
[1741837825106,0.26168319,83695.0,83694.0,0.18158189]
[1741837825310,0.26168319,83695.0,83694.0,0.1816862]
[1741837825713,0.29638319,83695.0,83694.0,0.1816862]
[1741837826305,0.29638319,83695.0,83694.0,0.2180862]
[1741837826902,0.29638319,83695.0,83694.0,0.2170862]
[1741837827312,0.29638319,83695.0,83694.0,0.21703386]
[1741837827707,0.1542029,83695.0,83694.0,0.21703386]
[1741837828302,0.1542029,83695.0,83694.0,0.18163386]
[1741837829106,0.0347,83695.0,83694.0,0.2192024]
[1741837829309,0.00017925,83697.0,83696.0,0.1195015]
[1741837829609,0.11967935,83697.0,83696.0,0.1449996]
[1741837829809,0.00017925,83697.0,83696.0,0.2184996]
[1741837830199,0.03587925,83697.0,83696.0,0.2384996]
[1741837831104,0.03587925,83697.0,83696.0,0.2184996]
[1741837831406,0.15537935,83697.0,83696.0,0.2184996]
[1741837832211,0.15537935,83697.0,83696.0,0.20626637]
[1741837834208,0.03587925,83697.0,83696.0,0.32626637]
[1741837834510,0.15537935,83697.0,83696.0,0.20626637]
[1741837835218,0.15537935,83697.0,83696.0,0.0989176]
[1741837835717,0.15537935,83697.0,83696.0,0.2184191]
[1741837836118,0.15537935,83697.0,83696.0,0.3418991]
[1741837836308,0.15537935,83697.0,83696.0,0.0989176]
[1741837836510,0.15537935,83697.0,83696.0,0.2223976]
[1741837837205,0.15537935,83697.0,83696.0,0.3418991]
[1741837840515,0.15537935,83697.0,83696.0,0.1847976]
[1741837841311,0.15537935,83697.0,83696.0,0.17264487]
[1741837841611,0.15537935,83697.0,83696.0,0.29214637]
[1741837842314,0.15537935,83697.0,83696.0,0.01326487]
[1741837842520,0.1195215,83682.0,83681.0,0.4194]
[1741837842720,0.0597598,83684.0,83677.0,0.28697791]
[1741837843015,0.0669,83681.0,83671.0,0.35731853]
[1741837843219,0.1195358,83672.0,83671.0,0.35731853]
[1741837844023,0.20075561,83672.0,83671.0,0.35731853]
[1741837844314,0.20075561,83672.0,83671.0,0.36945633]
[1741837844507,0.20075561,83672.0,83671.0,0.48899353]
[1741837845313,0.20075561,83672.0,83671.0,0.47785573]
[1741837845708,0.20075561,83672.0,83671.0,0.50875573]
[1741837845908,0.20275561,83672.0,83671.0,0.50875573]
[1741837846319,0.20275561,83672.0,83671.0,0.36942786]
[1741837846919,0.20575561,83672.0,83671.0,0.35731853]
[1741837847121,0.08621981,83672.0,83670.0,0.0369]
[1741837847316,0.1195372,83671.0,83670.0,0.0369]
[1741837847517,0.1195372,83671.0,83663.0,0.00017925]
[1741837847518,0.1185472,83664.0,83663.0,0.00017925]
[1741837848423,0.1809472,83664.0,83663.0,0.00017925]
[1741837849415,0.1839472,83664.0,83663.0,0.00017925]
[1741837849926,0.0654,83664.0,83663.0,0.15202785]
[1741837850320,0.1527472,83664.0,83663.0,0.15202785]
[1741837850525,0.1527472,83664.0,83663.0,0.18442785]
[1741837850832,0.003,83664.0,83663.0,0.18542785]
[1741837851025,0.1225472,83664.0,83663.0,0.18542785]
[1741837851323,0.003,83664.0,83663.0,0.18542785]
[1741837851525,0.003,83664.0,83663.0,0.18442785]
[1741837851714,0.1225472,83664.0,83663.0,0.18742785]
[1741837852314,0.1195472,83664.0,83663.0,0.18742785]
[1741837852517,0.1205472,83664.0,83663.0,0.18742785]
[1741837853825,0.0324,83668.0,83667.0,0.1195429]
[1741837854034,0.14814757,84136.0,83667.0,0.1195429]
[1741837854035,0.1195407,83669.0,83668.0,0.1195386]
[1741837854328,0.2434934,83678.0,83677.0,0.1195286]
[1741837854917,0.2434934,83678.0,83677.0,0.13285201]
[1741837855230,0.2434934,83678.0,83677.0,0.01332341]
[1741837855617,0.2454934,83678.0,83677.0,0.01332341]
[1741837856411,0.2454934,83678.0,83677.0,0.16425201]
[1741837856824,0.2474934,83678.0,83677.0,0.16425201]
[1741837857720,0.2454934,83678.0,83677.0,0.16525201]
[1741837857919,0.2434934,83678.0,83677.0,0.04572341]
[1741837858129,0.2454934,83678.0,83677.0,0.04572341]
[1741837858325,0.2454934,83678.0,83677.0,0.01432341]
[1741837858533,0.2454934,83678.0,83677.0,0.13385201]
[1741837859630,0.2454934,83678.0,83677.0,0.1205286]
[1741837860137,0.2434934,83678.0,83677.0,0.1205286]
[1741837860332,0.2464934,83678.0,83677.0,0.001]
[1741837861026,0.11953,83676.0,83675.0,0.0306]
[1741837861218,0.11953,83676.0,83668.0,0.0908703]
[1741837861219,0.11953,83676.0,83668.0,0.0311]
[1741837861420,0.0672,83678.0,83653.0,0.12348]
[1741837861421,0.1195472,83664.0,83653.0,0.12348]
[1741837861629,0.1195472,83664.0,83659.0,0.119553]
[1741837861823,0.1195472,83664.0,83657.0,0.0609]
[1741837862025,0.1195472,83664.0,83660.0,0.1195521]
[1741837862222,0.1195472,83664.0,83657.0,0.0306]
[1741837862529,0.1195472,83664.0,83657.0,0.0609]
[1741837862924,0.1195472,83664.0,83649.0,0.00888514]
[1741837863126,0.1195472,83664.0,83649.0,0.0627]
[1741837863837,0.13161062,83664.0,83663.0,5e-08]
[1741837864130,0.28161062,83664.0,83663.0,5e-08]
[1741837864334,0.16206342,83664.0,83643.0,0.0301]
[1741837864524,0.16206342,83664.0,83642.0,0.00179326]
[1741837864525,0.13483116,83652.0,83642.0,0.00179326]
[1741837864728,0.1195772,83643.0,83642.0,0.00179326]
[1741837864934,0.1195929,83632.0,83631.0,0.0625]
[1741837865633,0.1195929,83632.0,83631.0,0.1820944]
[1741837865823,0.1826929,83632.0,83631.0,0.1820944]
[1741837866338,0.1125929,83632.0,83631.0,0.1820944]
[1741837866539,0.1504919,83635.0,83634.0,0.1195901]
[1741837866732,0.0309,83635.0,83634.0,0.1195901]
[1741837866927,0.1504886,83635.0,83634.0,0.1195901]
[1741837867126,0.1464886,83635.0,83634.0,0.1195901]
[1741837867731,0.1195929,83632.0,83631.0,0.0625]
[1741837867931,0.1195929,83632.0,83621.0,0.41712213]
[1741837867932,0.0269,83635.0,83623.0,1.38881936]
[1741837868223,0.01175435,83638.0,83631.0,0.007]
[1741837868224,0.1195929,83632.0,83631.0,0.007]
[1741837868631,0.1513929,83632.0,83631.0,0.007]
[1741837869236,0.1196029,83625.0,83624.0,0.033]
[1741837870219,0.1196029,83625.0,83623.0,0.00717936]
[1741837870220,0.1196044,83624.0,83623.0,0.00717936]
[1741837870424,0.1828044,83624.0,83623.0,0.00717936]
[1741837870632,0.1828044,83624.0,83623.0,6e-08]
[1741837871031,0.1196172,83615.0,83614.0,0.1520187]
[1741837871430,0.1196172,83615.0,83614.0,0.0653]
[1741837871925,0.1176187,83614.0,83613.0,0.00187812]
[1741837872125,0.12939223,83614.0,83613.0,0.00187812]
[1741837872335,0.19259223,83614.0,83613.0,0.00187812]
[1741837872933,0.18659223,83614.0,83613.0,0.00187812]
[1741837874440,0.18759223,83614.0,83613.0,0.00187812]
[1741837875234,0.1196287,83607.0,83606.0,0.00017936]